[Event "Prague Festival Challengers 2024"]
[Site "Prague"]
[Date "2024.02.28"]
[Round "2.3"]
[White "Stalmach, Richard"]
[Black "Santos Latasa, Jaime"]
[Result "1/2-1/2"]
[ECO "E04"]
[WhiteElo "2433"]
[BlackElo "2615"]
[Annotator "TA"]
[PlyCount "74"]
[EventDate "2024.02.22"]
[EventType "tourn"]
[EventCountry "CZE"]
[SourceTitle "playchess.com"]
[Source "ChessBase"]
[SourceQuality "1"]
[TimeControl "40/5400+30:1800+30"]

{[%evp 10,74,0,-12,-2,0,-8,-9,-14,-13,-12,-12,0,0,0,0,0,0,0,0,0,0,0,-16,0,0,7,-25,0,0,0,9,0,-5,0,0,0,-66,-54,-223,-55,-23,-33,-77,-83,-70,0,0,0,0,0,0,0,0,0,0,0,0,0,0,0,0,0,0,0,0,0]} 1. d4 {[%emt 0:00:04]} Nf6 {[%emt 0:00:06]} 2. c4 {[%emt 0:00:07]} e6 {[%emt 0:00:06]} 3. Nf3 {[%emt 0:00:08]} d5 {[%emt 0:00:15]} 4. g3 {[%emt 0:00:26]} Bb4+ {[%emt 0:00:19]} 5. Nbd2 {[%emt 0:00:23]} dxc4 {[%emt 0:01:59]} 6. Bg2 {[%emt 0:00:05]} b5 {[%emt 0:01:28]} 7. a3 {[%emt 0:00:28]} Be7 {[%emt 0:03:02]} 8. b3 {[%emt 0:00:13]} cxb3 {[%emt 0:00:57]} 9. Qxb3 {[%emt 0:00:06]} a6 {[%emt 0:00:52]} 10. a4 {[%emt 0:00:14]} bxa4 {[%emt 0:04:07]} 11. Qxa4+ {[%emt 0:00:36]} Bd7 {[%emt 0:00:14]} 12. Qc2 {[%emt 0:00:06]} Bb5 {[%emt 0:01:28]} 13. Nb3 {[%emt 0:02:32]} Nc6 {[%emt 0:02:05]} 14. O-O {[%emt 0:08:03]} O-O {[%emt 0:06:29]} 15. Ba3 {[%emt 0:03:28]} Rb8 {[%emt 0:02:20][%cal Ob5e2]} 16. Rfc1 {[%emt 0:18:02]} Bxa3 {[%emt 0:03:15]} (16... Bxe2 $5 17. Qxe2 Rxb3 18. Bxe7 Nxe7 $15) 17. Rxa3 {[%emt 0:00:05]} Qd6 {[%emt 0:00:40]} 18. Rca1 {[%emt 0:17:37]} e5 {[%emt 0:13:54]} 19. dxe5 {[%emt 0:04:01]} Nxe5 {[%emt 0:00:15]} 20. Nxe5 {[%emt 0:00:38]} Qxe5 {[%emt 0:00:12]} 21. e3 {[%emt 0:00:08]} h5 {[%emt 0:00:13]} 22. Nc5 {[%emt 0:09:00]} Rfd8 {[%emt 0:02:30]} 23. f4 {[%emt 0:04:45]} (23. Nxa6 $11 Bxa6 24. Rxa6) 23... Qe7 $15 {[%emt 0:01:13]} 24. e4 $2 {[%emt 0:03:54] [#]} (24. Nb7 $15) 24... Rb6 $2 {[%emt 0:01:55]} (24... Rd4 $1 $19 {[%cal Rd4c4] And now ...Rc4 would win.} 25. Nxa6 Rbd8) 25. e5 $1 {[%emt 0:05:29]} Nd5 {[%emt 0:01:16]} 26. Ne4 {[%emt 0:01:02]} Rc6 {[%emt 0:01:11]} 27. Qf2 {[%emt 0:00:50] [#]} Qxa3 {[%emt 0:00:11]} 28. Rxa3 $11 {[%emt 0:00:08] The position is equal.} ({Wrong is} 28. Nf6+ $2 Nxf6 (28... gxf6 $2 29. Rxa3 Rc1+ 30. Bf1 $19) 29. Rxa3 Rd1+ $19 (29... Rc1+ $2 30. Bf1 $19) (29... Rc1+ $2 30. Bf1 $19)) 28... Rc1+ {[%emt 0:00:10]} 29. Bf1 $1 {[%emt 0:00:20]} Rxf1+ {[%emt 0:00:13]} 30. Qxf1 {[%emt 0:00:04]} Bxf1 {[%emt 0:00:05]} 31. Kxf1 {[%emt 0:00:03][%mdl 4096] Endgame. KRN-KRN} Nb4 {[%emt 0:01:44]} 32. Ra4 {[%emt 0:04:29]} Rb8 {[%emt 0:00:44]} 33. Nc5 {[%emt 0:03:15]} Rb6 {[%emt 0:03:04]} 34. Ke2 {[%emt 0:01:33]} Rc6 {[%emt 0:01:43]} 35. Ra5 {[%emt 0:01:38]} Rb6 {[%emt 0:03:53]} 36. Ra4 {[%emt 0:01:33]} Rc6 {[%emt 0:05:54]} 37. Ra5 {[%emt 0:00:05]} Rb6 {[%emt 0:07:01] Weighted Error Value: White=0.18 (very precise) /Black=0.14 (very precise) .  Loses game:     	White=1     	---        Missed win:     	---       	Black=1      Mistake:       	White=1     	Black=1      Inaccurate:     	White=2     	Black=1      OK:         	White=15    	Black=13     Best:        	---       	Black=2      Strong:       	White=2     	---} 1/2-1/2

[Event "Prague Festival Challengers 2024"]
[Site "Prague"]
[Date "2024.02.28"]
[Round "2.4"]
[White "L'Ami, Erwin"]
[Black "Finek, Vaclav"]
[Result "1/2-1/2"]
[ECO "C01"]
[WhiteElo "2627"]
[BlackElo "2416"]
[Annotator "TA"]
[PlyCount "95"]
[EventDate "2024.02.22"]
[EventType "tourn"]
[EventCountry "CZE"]
[SourceTitle "playchess.com"]
[Source "ChessBase"]
[SourceQuality "1"]
[TimeControl "40/5400+30:1800+30"]

{[%evp 15,95,0,14,-14,1,-25,-30,-29,-30,-32,-20,-23,-23,-31,-19,-32,-21,-32,0,0,0,0,0,0,0,0,0,0,0,0,0,0,0,-2,0,-19,6,14,4,10,14,0,0,0,0,0,0,4,6,10,9,0,0,0,0,0,0,0,0,0,0,0,0,0,0,0,0,0,0,0,0,0,0,0,0,0,0,0,0,0,0,0]} 1. e4 {[%emt 0:00:05]} e5 {[%emt 0:00:19]} 2. Nf3 {[%emt 0:00:13]} Nf6 {[%emt 0:00:05]} 3. Nxe5 {[%emt 0:00:33]} d6 {[%emt 0:00:03]} 4. Nf3 {[%emt 0:00:15]} Nxe4 {[%emt 0:00:07]} 5. d3 {[%emt 0:00:51]} Nf6 {[%emt 0:00:10]} 6. d4 {[%emt 0:00:08]} d5 {[%emt 0:00:05]} 7. Bd3 {[%emt 0:00:12]} c5 {[%emt 0:00:52]} 8. dxc5 {[%emt 0:07:46]} Bxc5 {[%emt 0:00:13]} 9. Qe2+ {[%emt 0:04:49]} Be7 {[%emt 0:09:37]} 10. Bb5+ {[%emt 0:06:27]} Nc6 {[%emt 0:06:33]} 11. Ne5 {[%emt 0:01:49] Black has an edge.} Bd7 {[%emt 0:02:00]} 12. Nxd7 {[%emt 0:03:21]} Qxd7 {[%emt 0:00:14]} 13. O-O {[%emt 0:03:32]} O-O {[%emt 0:01:21][%cal Oc6d4] [#] Hoping for ...Nd4!} 14. Nc3 {[%emt 0:05:05]} Rfe8 {[%emt 0:06:52]} 15. Qf3 {[%emt 0:07:04]} a6 {[%emt 0:07:37]} 16. Ba4 {[%emt 0:05:21]} Rac8 {[%emt 0:05:13]} (16... b5 $5 17. Bb3 $8 Ne5 $15) 17. Bg5 {[%emt 0:08:26] The position is equal.} b5 {[%emt 0:04:37]} 18. Bb3 {[%emt 0:01:04][%cal Of1d1]} Ne5 {[%emt 0:02:48]} 19. Qd1 {[%emt 0:03:08][%cal Og5f6]} d4 {[%emt 0:04:15]} 20. Bxf6 {[%emt 0:05:27]} Bxf6 {[%emt 0:00:07]} 21. Nd5 {[%emt 0:00:28][%cal Od5b6]} Qf5 {[%emt 0:05:06]} 22. a4 {[%emt 0:08:56]} (22. Qxd4 $2 {perishes.} Nf3+ 23. gxf3 Bxd4 $19) 22... Nc4 {[%emt 0:03:02]} 23. Nxf6+ {[%emt 0:00:29]} Qxf6 {[%emt 0:00:13]} 24. axb5 {[%emt 0:00:08] White is weak on the dark squares} axb5 {[%emt 0:00:11]} 25. Ra2 {[%emt 0:03:25]} Ra8 {[%emt 0:07:31]} 26. Rxa8 {[%emt 0:00:45]} Rxa8 {[%emt 0:00:12]} 27. Qd3 {[%emt 0:00:34]} Rc8 {[%emt 0:03:34]} 28. Re1 {[%emt 0:03:34][%cal Bf1e1,Be1e4,Be4d4,Bd4d5][%mdl 32]} g6 {[%emt 0:03:23]} 29. h3 {[%emt 0:02:08]} Kg7 {[%emt 0:07:22]} 30. Re4 {[%emt 0:02:44]} Nxb2 {[%emt 0:03:13][%cal Bc4b2,Bb2a4,Ba4c5][%mdl 32]} 31. Qxd4 {[%emt 0:00:20]} Qxd4 {[%emt 0:00:43]} 32. Rxd4 $11 {[%emt 0:00:09][%mdl 4096] Endgame. KRB-KRN} Rc7 {[%emt 0:01:31]} 33. f4 {[%emt 0:03:01]} Na4 {[%emt 0:02:05]} 34. Kh2 {[%emt 0:04:22]} Nc5 {[%emt 0:02:15]} 35. Rd5 {[%emt 0:00:09]} h5 {[%emt 0:02:22]} 36. h4 {[%emt 0:02:09]} f5 {[%emt 0:06:00]} 37. g3 {[%emt 0:04:44]} Nxb3 {[%emt 0:02:07]} 38. cxb3 {[%emt 0:00:09][%cal Bc2b3,Bb3b4,Bb4b5,Bb5b6,Bb6b7][%mdl 32] KR-KR} Rc2+ {[%emt 0:00:03]} 39. Kh3 {[%emt 0:00:10]} Rb2 {[%emt 0:00:36]} 40. Rxb5 {[%emt 0:00:07]} Kf7 {[%emt 0:00:43]} 41. Rb6 {[%emt 0:31:13]} Kg7 {[%emt 0:30:12]} 42. b4 {[%emt 0:00:08]} Kf7 {[%emt 0:01:04]} 43. Rb7+ {[%emt 0:00:11]} Kf6 {[%emt 0:00:45]} 44. b5 {[%emt 0:00:07]} Ke6 {[%emt 0:00:39]} 45. Rb8 {[%emt 0:00:37]} Kf6 {[%emt 0:00:35]} 46. b6 {[%emt 0:00:11]} Kg7 {[%emt 0:00:25]} 47. b7 {[%emt 0:00:21]} Kh7 {[%emt 0:00:09]} 48. Rc8 {[%emt 0:00:07] An even fight not without its subleties.   Weighted Error Value: White=0.04 (flawless) /Black=0.03 (flawless) .  Inaccurate:     	White=1     	Black=1      OK:         	White=19    	Black=20     Best:        	White=1     	Black=1} 1/2-1/2

[Event "Prague Festival Challengers 2024"]
[Site "Prague"]
[Date "2024.02.28"]
[Round "2.5"]
[White "Mishra, Abhimanyu"]
[Black "Rodshtein, Maxim"]
[Result "1/2-1/2"]
[ECO "E11"]
[WhiteElo "2627"]
[BlackElo "2580"]
[Annotator "TA"]
[PlyCount "80"]
[EventDate "2024.02.22"]
[EventType "tourn"]
[EventCountry "CZE"]
[SourceTitle "playchess.com"]
[Source "ChessBase"]
[SourceQuality "1"]
[TimeControl "40/5400+30:1800+30"]

{[%evp 15,80,0,13,8,18,3,0,6,12,12,10,5,8,9,10,0,0,0,0,0,0,-37,-2,-12,-10,-41,-41,-81,-35,-57,-66,-68,-54,-70,-52,-65,-42,-85,-58,-84,-63,-77,0,0,0,-99,-82,-94,-80,-80,-80,-131,-62,-62,0,0,0,0,0,0,0,0,0,0,0,0,0]} 1. d4 {[%emt 0:00:02]} Nf6 {[%emt 0:00:10]} 2. c4 {[%emt 0:00:02]} e6 {[%emt 0:00:51]} 3. Nf3 {[%emt 0:00:06]} d5 {[%emt 0:00:07]} 4. g3 {[%emt 0:00:11]} Bb4+ {[%emt 0:00:36]} 5. Bd2 {[%emt 0:00:04]} Be7 {[%emt 0:00:20]} 6. Bg2 {[%emt 0:00:16]} c6 {[%emt 0:00:36]} 7. O-O {[%emt 0:03:21]} Nbd7 {[%emt 0:00:31]} 8. Qc2 {[%emt 0:01:00]} O-O {[%emt 0:00:38]} 9. Rc1 {[%emt 0:00:27]} a5 {[%emt 0:03:26]} 10. a3 {[%emt 0:00:27]} b6 {[%emt 0:13:47]} 11. cxd5 {[%emt 0:00:21]} cxd5 {[%emt 0:00:02]} 12. Nc3 {[%emt 0:00:49]} Ba6 {[%emt 0:03:27]} 13. Bg5 {[%emt 0:01:01]} Qb8 {[%emt 0:07:07]} 14. e3 {[%emt 0:09:16]} Rc8 {[%emt 0:03:42]} 15. Bf1 {[%emt 0:06:46]} Bxf1 {[%emt 0:03:33]} 16. Kxf1 {[%emt 0:00:25]} b5 {[%emt 0:00:22] [#] ...b4 is the strong threat.} 17. Qd3 {[%emt 0:10:32]} b4 {[%emt 0:00:58]} 18. Nb5 {[%emt 0:06:03]} bxa3 {[%emt 0:09:32]} 19. bxa3 {[%emt 0:00:57]} Qb7 {[%emt 0:00:29]} 20. Nd2 {[%emt 0:13:52]} a4 {[%emt 0:03:31]} 21. Bf4 {[%emt 0:02:24]} Ne8 {[%emt 0:09:26] Repels Bd6} ({Black should play} 21... Qa6 $17 {Threatens to win with ...Rxc1+.} 22. Ke2 Rxc1 23. Rxc1 Ne4) 22. g4 {[%emt 0:04:59]} Nb6 {[%emt 0:01:19]} 23. Rxc8 {[%emt 0:04:33]} Rxc8 {[%emt 0:00:32]} 24. Rb1 {[%emt 0:01:03]} Qa6 {[%emt 0:09:21][%cal Oe8d6]} 25. Ke2 {[%emt 0:04:22]} Nc4 {[%emt 0:00:27] Wards off Nd6} 26. Nxc4 {[%emt 0:05:34]} Rxc4 {[%emt 0:02:33]} 27. g5 {[%emt 0:01:48]} g6 {[%emt 0:07:32]} 28. Kf3 {[%emt 0:01:29][%cal Ob5c7]} Nd6 {[%emt 0:06:36]} (28... Rc6 $17) 29. Nxd6 $11 {[%emt 0:01:46]} Bxd6 {[%emt 0:00:02]} 30. Bxd6 {[%emt 0:02:07]} (30. Bg3 $1 $11) 30... Qxd6 {[%emt 0:00:05][%mdl 4096] Endgame. KQR-KQR} 31. Kg2 {[%emt 0:00:26]} Qd8 {[%emt 0:04:15]} 32. h4 {[%emt 0:04:03]} h6 $1 {[%emt 0:00:15]} 33. Rh1 {[%emt 0:01:49] [#]} (33. Qd1 $142) 33... hxg5 {[%emt 0:05:30]} ({Better is} 33... h5 $1 $17 34. Rd1 Kg7) 34. h5 $15 {[%emt 0:00:13]} gxh5 {[%emt 0:01:48]} (34... Qf6 $1 $15 35. hxg6 Qxg6 (35... fxg6 36. Qb1 $14) 36. Qxg6+ fxg6) 35. Rxh5 $11 {[%emt 0:00:10] Black must now prevent e4. The position is equal.} Qf6 {[%emt 0:00:08]} 36. Qb1 $36 {[%emt 0:01:46][%mdl 2048] Threatening mate with Qb8+. White has good play.} Kg7 $1 {[%emt 0:02:00] ...Qg6 would now be deadly.} 37. Rh7+ {[%emt 0:09:27]} (37. Qb8 $5 Kg6 $8 38. Rh8 $11) 37... Kg8 {[%emt 0:00:01]} 38. Rh5 {[%emt 0:00:21] White threatens Qb8+ and mate.} (38. Rh1 $5 Kg7 $8 39. Rh7+ Kg8 40. Rh3 $11) 38... Kg7 $1 {[%emt 0:00:09] Hoping for ...Qg6.} 39. Rh7+ {[%emt 0:03:35]} (39. Qb8 $5 Kg6 $8 40. Rh8 $11) 39... Kg8 {[%emt 0:00:03]} 40. Rh5 {[%emt 0:01:52] White wants to mate with Qb8+.} (40. Rh3 $5 Kg7 $8 41. Qb8 $11 (41. Qh7+ Kf8 $11)) 40... Kg7 $1 {[%emt 0:00:36] Weighted Error Value: White=0.15 (very precise) /Black=0.12 (very precise) .  Mistake:       	White=2     	Black=4      Inaccurate:     	White=5     	Black=1      OK:         	White=9     	Black=13     Best:        	White=2     	Black=2      Strong:       	---       	Black=4} 1/2-1/2

[Event "Prague Festival Challengers 2024"]
[Site "Prague"]
[Date "2024.02.29"]
[Round "3.1"]
[White "Rodshtein, Maxim"]
[Black "Gurel, Ediz"]
[Result "1/2-1/2"]
[ECO "D11"]
[WhiteElo "2580"]
[BlackElo "2560"]
[Annotator "TA"]
[PlyCount "100"]
[EventDate "2024.02.22"]
[EventType "tourn"]
[EventCountry "CZE"]
[SourceTitle "playchess.com"]
[Source "ChessBase"]
[SourceQuality "1"]
[TimeControl "40/5400+30:1800+30"]

{[%evp 15,100,0,0,0,0,0,0,0,0,0,16,18,22,29,20,18,23,17,34,31,18,20,30,4,14,14,10,8,12,4,8,8,7,0,0,0,0,0,0,0,0,0,0,0,0,0,0,0,0,0,0,0,0,0,0,0,0,0,0,0,0,0,0,0,0,0,0,0,0,0,0,0,0,0,0,0,0,0,0,0,0,0,0,0,0,0,0]} 1. Nf3 {[%emt 0:00:06]} d5 {[%emt 0:00:13]} 2. d4 {[%emt 0:00:52]} Nf6 {[%emt 0:00:19]} 3. c4 {[%emt 0:00:30]} c6 {[%emt 0:00:10]} 4. g3 {[%emt 0:00:36]} Bg4 {[%emt 0:00:22]} 5. Ne5 {[%emt 0:00:23]} Bf5 {[%emt 0:00:07]} 6. cxd5 {[%emt 0:00:25] D11: Slav Defence: 3 Nf3 sidelines and 3...Nf6 4 e3 Bg4.} Qxd5 {[%emt 0:00:21]} 7. f3 {[%emt 0:01:12]} Bxb1 {[%emt 0:00:14]} 8. Rxb1 {[%emt 0:00:05]} Qxa2 {[%emt 0:00:05]} 9. Bd2 {[%emt 0:00:31]} Nbd7 {[%emt 0:00:15]} 10. e4 {[%emt 0:00:50]} Nxe5 {[%emt 0:00:59]} 11. dxe5 {[%emt 0:00:07]} Nd7 {[%emt 0:00:02]} 12. Bc3 {[%emt 0:00:08]} Nc5 $146 {[%emt 0:00:13]} ({Predecessor:} 12... Nb6 13. Ra1 Qe6 14. h4 Qd7 15. Qb3 e6 16. Rh2 Qc7 17. Rd2 Be7 18. f4 O-O {0-1 Milikow,Y (2394)-Kramnik,V (2753) Titled Tuesday intern op 23rd May Late blitz 2023 (4)}) 13. Ra1 {[%emt 0:03:56]} Qb3 {[%emt 0:00:04]} 14. Qxb3 {[%emt 0:01:19]} Nxb3 {[%emt 0:00:04]} 15. Ra3 {[%emt 0:00:06]} Nc5 {[%emt 0:00:04]} 16. b4 {[%emt 0:00:15]} Ne6 {[%emt 0:00:09]} 17. b5 {[%emt 0:08:41]} Nc7 {[%emt 0:00:14]} 18. bxc6 {[%emt 0:06:54]} bxc6 {[%emt 0:00:11]} 19. Bc4 {[%emt 0:26:48]} e6 {[%emt 0:04:45]} 20. Ra5 {[%emt 0:00:16]} Be7 {[%emt 0:04:11]} 21. Ke2 {[%emt 0:01:10]} O-O {[%emt 0:00:07]} 22. Rha1 {[%emt 0:05:07]} Nb5 {[%emt 0:02:43]} 23. Bxb5 {[%emt 0:01:55]} cxb5 {[%emt 0:00:01]} 24. Rxb5 {[%emt 0:08:31]} Rfc8 {[%emt 0:02:07]} 25. Bd4 {[%emt 0:01:38]} a6 {[%emt 0:06:19]} 26. Rba5 {[%emt 0:06:19]} Rc6 {[%emt 0:07:09]} 27. R1a2 {[%emt 0:00:26]} g6 {[%emt 0:01:52]} 28. Be3 {[%emt 0:01:42]} Kg7 {[%emt 0:02:58]} 29. f4 {[%emt 0:01:19]} h5 {[%emt 0:00:29]} 30. R5a4 {[%emt 0:03:14]} Bd8 {[%emt 0:03:37]} 31. Bd2 {[%emt 0:06:02]} a5 {[%emt 0:02:34]} 32. Rb2 {[%emt 0:03:24]} (32. Bxa5 Rca6 33. Bxd8 Rxa4 34. Rxa4 Rxa4 $19) 32... Rb6 {[%emt 0:06:43]} 33. Rxb6 {[%emt 0:04:54]} Bxb6 {[%emt 0:00:05]} 34. Be3 {[%emt 0:02:59]} Bxe3 {[%emt 0:06:08]} 35. Kxe3 {[%emt 0:00:04]} h4 {[%emt 0:01:51]} 36. gxh4 {[%emt 0:02:14]} Kh6 {[%emt 0:01:01]} 37. Kf3 {[%emt 0:01:57]} Kh5 {[%emt 0:00:37]} 38. Kg3 {[%emt 0:00:09]} Rb8 {[%emt 0:01:40]} 39. Rxa5 {[%emt 0:01:08]} Rb3+ {[%emt 0:00:04]} 40. Kg2 {[%emt 0:00:20]} Kg4 {[%emt 0:00:07]} 41. Ra2 {[%emt 0:05:04]} Re3 {[%emt 0:02:39]} 42. h3+ {[%emt 0:05:49]} Rxh3 {[%emt 0:01:41]} 43. Ra7 {[%emt 0:03:36]} Rg3+ {[%emt 0:00:05]} 44. Kh2 {[%emt 0:00:05]} Re3 {[%emt 0:01:54]} 45. Rxf7 {[%emt 0:02:08]} Re2+ {[%emt 0:00:07]} 46. Kg1 {[%emt 0:00:05]} Kg3 {[%emt 0:00:06]} 47. Kf1 {[%emt 0:00:06]} Rf2+ {[%emt 0:00:05]} 48. Kg1 {[%emt 0:02:11]} Re2 {[%emt 0:01:20]} (48... Rxf4 $5 49. Rf6 $8 Rxe4 50. Rxg6+ Kxh4 $11) 49. Kf1 {[%emt 0:00:10]} Rf2+ {[%emt 0:00:16]} 50. Kg1 $1 {[%emt 0:00:06]} Re2 {[%emt 0:00:11]} (50... Rb2 $5 51. Kf1 $8 Rf2+ $11) 1/2-1/2

[Event "Prague Festival Challengers 2024"]
[Site "Prague"]
[Date "2024.02.29"]
[Round "3.2"]
[White "Finek, Vaclav"]
[Black "Mishra, Abhimanyu"]
[Result "0-1"]
[ECO "D23"]
[WhiteElo "2416"]
[BlackElo "2627"]
[Annotator "TA"]
[PlyCount "124"]
[EventDate "2024.02.22"]
[EventType "tourn"]
[EventCountry "CZE"]
[SourceTitle "playchess.com"]
[Source "ChessBase"]
[SourceQuality "1"]
[TimeControl "40/5400+30:1800+30"]

{[%evp 38,124,0,0,2,4,0,0,27,-30,0,0,0,0,23,0,0,0,0,0,0,0,0,-46,0,-24,0,-5,-13,-16,-12,-46,-33,-29,-36,-38,-4,-10,0,0,0,-7,0,0,0,-1,0,0,-8,-8,0,-9,-8,-194,-194,-331,-335,-364,-341,-643,-641,-1266,-1210,-1286,-875,-1461,-1315,-1210,-959,-2534,-2195,-1829,-964,-29974,-29975,-29974,-29976,-29976,-29977,-29977,-29978,-29978,-29971,-29968,-29958,-29980,-29981,-29981,-29981]} 1. d4 {[%emt 0:00:02]} d5 {[%emt 0:00:03]} 2. c4 {[%emt 0:00:04]} c6 {[%emt 0:00:06]} 3. Nf3 {[%emt 0:00:04]} Nf6 {[%emt 0:00:07]} 4. Qc2 {[%emt 0:00:03]} dxc4 {[%emt 0:00:10]} 5. Qxc4 {[%emt 0:00:04]} Bf5 {[%emt 0:00:13]} 6. g3 {[%emt 0:00:05]} e6 {[%emt 0:00:21]} 7. Bg2 {[%emt 0:00:03]} Be7 {[%emt 0:00:20]} 8. O-O {[%emt 0:00:06] D23: Queen's Gambit Accepted: 3 Nf3 Nf6 sidelines.} O-O {[%emt 0:00:19]} 9. Rd1 {[%emt 0:00:10]} Nbd7 {[%emt 0:01:05]} 10. e3 {[%emt 0:00:05]} Bg6 {[%emt 0:00:11] 10...Qb6 is a critical line.} 11. Qe2 {[%emt 0:00:05]} Qb8 $5 {[%emt 0:00:22][%mdl 4] An interesting side line.} 12. h3 $146 {[%emt 0:10:39]} ({Predecessor:} 12. Nc3 b5 13. Nd2 Bh5 14. f3 Bg6 15. e4 b4 16. Ncb1 c5 17. dxc5 Nxc5 18. Nc4 {1-0 Berg,M (2331)-Rosenthal,J (2315) EU-Cup 34th Porto Carras 2018 (6.4)}) 12... Re8 {[%emt 0:00:27]} 13. Nc3 {[%emt 0:03:23]} Bb4 {[%emt 0:00:46]} 14. Bd2 {[%emt 0:14:31]} e5 {[%emt 0:03:11]} 15. a3 {[%emt 0:02:28]} Bxc3 {[%emt 0:15:08]} 16. Bxc3 {[%emt 0:00:11]} e4 {[%emt 0:00:14]} 17. Nh4 {[%emt 0:02:20]} Nd5 {[%emt 0:10:34]} 18. Rdc1 {[%emt 0:02:15]} Qd6 {[%emt 0:05:22]} 19. Rc2 {[%emt 0:03:39]} f5 {[%emt 0:11:29]} 20. Bd2 {[%emt 0:04:13]} Qf6 {[%emt 0:07:05]} 21. Nxg6 {[%emt 0:00:50]} hxg6 {[%emt 0:00:05]} 22. a4 {[%emt 0:03:51]} a6 {[%emt 0:01:30]} 23. Rac1 {[%emt 0:02:38]} (23. b4 $142) 23... Re6 {[%emt 0:02:54]} 24. Qc4 {[%emt 0:03:32]} Kh7 {[%emt 0:06:16]} 25. Qb3 {[%emt 0:02:30]} b5 {[%emt 0:04:27]} 26. Ra1 {[%emt 0:03:36]} Rf8 {[%emt 0:03:31]} 27. axb5 {[%emt 0:03:00]} axb5 {[%emt 0:00:01]} 28. h4 {[%emt 0:03:54]} N7b6 {[%emt 0:05:49]} 29. Bb4 {[%emt 0:05:26]} Rf7 {[%emt 0:01:34]} 30. Bc5 {[%emt 0:04:35]} (30. Rc5 $11 {might be stronger.}) 30... Na4 {[%emt 0:01:34]} (30... Nc4 $15 31. Rxc4 bxc4 32. Qxc4 Rb7) 31. Qa3 {[%emt 0:04:44]} Nxc5 {[%emt 0:04:44]} 32. Qxc5 {[%emt 0:01:13]} g5 {[%emt 0:00:27]} 33. hxg5 {[%emt 0:01:40]} Qxg5 {[%emt 0:00:02]} 34. Ra7 {[%emt 0:07:10]} (34. Rd2 {keeps more tension.} Rh6 35. Qc1 Nxe3 36. fxe3 Qxe3+ 37. Rf2) 34... Rxa7 {[%emt 0:04:31]} 35. Qxa7 {[%emt 0:00:05]} Qg4 {[%emt 0:00:51]} 36. Qa1 $1 {[%emt 0:03:11]} Rg6 {[%emt 0:04:24]} 37. Qf1 {[%emt 0:03:45]} Rh6 {[%emt 0:03:11]} 38. Qe2 {[%emt 0:00:51]} Qxe2 {[%emt 0:04:23]} 39. Rxe2 {[%emt 0:00:34]} Nb4 {[%emt 0:00:55]} 40. Rd2 {[%emt 0:00:48]} Rd6 {[%emt 0:00:39]} 41. Bf1 {[%emt 0:32:20]} Rd8 {[%emt 0:11:42]} 42. Kg2 {[%emt 0:00:00]} g5 {[%emt 0:03:45]} 43. Rd1 {[%emt 0:00:00]} Ra8 {[%emt 0:04:11]} 44. Be2 {[%emt 0:00:52]} Ra2 {[%emt 0:03:13]} 45. Rd2 $2 {[%emt 0:00:05]} (45. Rb1 $11) 45... g4 $19 {[%emt 0:05:15]} 46. Kf1 {[%emt 0:01:36]} (46. d5 $142 Nxd5 47. Bxb5 Nxe3+ 48. fxe3 cxb5 49. Kf2) 46... Kg6 $19 {[%emt 0:00:16]} 47. Kg1 {[%emt 0:03:03]} Kf6 {[%emt 0:01:58]} 48. d5 $2 {[%emt 0:03:10]} (48. Kf1) 48... Nxd5 $19 {[%emt 0:00:42]} ({Less strong is} 48... cxd5 49. Bxb5 Ra1+ 50. Kg2 $17) 49. Bxb5 {[%emt 0:00:13]} cxb5 {[%emt 0:00:11]} 50. Rxd5 {[%emt 0:00:06]} Rxb2 {[%emt 0:00:02]} 51. Kf1 {[%emt 0:00:18]} Ke6 {[%emt 0:01:25]} 52. Rc5 {[%emt 0:00:04]} b4 {[%emt 0:00:28]} 53. Rb5 {[%emt 0:00:04]} b3 {[%emt 0:01:18]} 54. Ke1 {[%emt 0:02:13]} Kd6 {[%emt 0:02:07]} 55. Rxf5 {[%emt 0:00:49]} Rc2 {[%emt 0:00:56]} 56. Kd1 {[%emt 0:00:03]} Rc5 {[%emt 0:00:19]} 57. Rf6+ {[%emt 0:00:21]} Kc7 {[%emt 0:00:16]} 58. Rf7+ {[%emt 0:00:07]} Kc6 {[%emt 0:00:37]} 59. Rf6+ {[%emt 0:01:24]} Kb5 {[%emt 0:00:32]} 60. Rf8 {[%emt 0:00:08]} Kb4 {[%emt 0:00:44]} 61. Re8 {[%emt 0:00:58]} b2 {[%emt 0:00:29]} 62. Rb8+ {[%emt 0:00:36]} Rb5 {[%emt 0:00:36]} 0-1